fUSD/lending_fUSD_20251012
["ID","MTS","AMOUNT","RATE_DAILY","PERIOD"]
[391078022,1760304669299,-625.16,0.00029242,120]
[391078023,1760304669308,-625.16,0.00029242,120]
[391078024,1760304669318,-625.16,0.00029242,120]
[391078025,1760304669327,-625.16,0.00029242,120]
[391078026,1760304669338,-625.16,0.00029242,120]
[391078027,1760304669347,-625.16,0.00029242,120]
[391078028,1760304669357,-625.16,0.00029242,120]
[391078029,1760304669367,-625.16,0.00029242,120]
[391078030,1760304669376,-625.39555734,0.00029242,120]
[391078031,1760304669386,-500.0,0.00029242,120]
[391078032,1760304669397,-500.0,0.00029242,120]
[391078033,1760304669408,-500.0,0.00029242,120]
[391078034,1760304669417,-500.0,0.00029242,120]
[391078035,1760304669426,-512.28333171,0.00029242,120]
[391078036,1760304669436,-500.0,0.00029242,120]
[391078037,1760304669444,-500.0,0.00029242,120]
[391078038,1760304669454,-500.0,0.00029242,120]
[391078039,1760304669463,-500.0,0.00029242,120]
[391078040,1760304669474,-500.0,0.00029242,120]
[391078041,1760304669484,-500.0,0.00029242,120]
[391078042,1760304669494,-500.0,0.00029242,120]
[391078043,1760304669503,-500.0,0.00029242,120]
[391078044,1760304669512,-500.0,0.00029242,120]
[391078045,1760304669522,-500.0,0.00029242,120]
[391078046,1760304669531,-500.0,0.00029242,120]
[391078047,1760304669540,-500.0,0.00029242,120]
[391078048,1760304669550,-500.0,0.00029242,120]
[391078049,1760304669559,-301.80707393,0.00029242,120]
[391078050,1760304669568,-1000.0,0.00029245,3]
[391078051,1760304669577,-1000.0,0.00029245,5]
[391078052,1760304669587,-1000.0,0.00029245,7]
[391078053,1760304669596,-33438.63162419,0.00029245,2]
[391078054,1760304669605,-33438.63162419,0.00029245,2]
[391078055,1760304669615,-33438.63162419,0.00029245,2]
[391078056,1760304669625,-33438.63162419,0.00029245,2]
[391078057,1760304669634,-150.0,0.00029246,30]
[391078058,1760304669643,-156.0,0.00029246,3]
[391078059,1760304669652,-156.0,0.00029246,3]
[391078060,1760304669662,-156.0,0.00029246,3]
[391078061,1760304669671,-156.0,0.00029246,3]
[391078062,1760304669680,-156.0,0.00029246,3]
[391078063,1760304669689,-156.0,0.00029246,3]
[391078064,1760304669699,-156.0,0.00029246,3]
[391078065,1760304669708,-156.0,0.00029246,3]
[391078066,1760304669716,-156.0,0.00029246,3]
[391078067,1760304669726,-156.0,0.00029246,3]
[391078068,1760304669735,-156.0,0.00029246,3]
[391078069,1760304669744,-156.0,0.00029246,3]
[391078070,1760304669753,-156.0,0.00029246,3]
[391078071,1760304669762,-156.0,0.00029246,3]
[391078072,1760304669771,-156.0,0.00029246,3]
[391078073,1760304669780,-156.0,0.00029246,3]
[391078074,1760304669789,-156.0,0.00029246,3]
[391078075,1760304669798,-156.0,0.00029246,3]
[391078076,1760304669807,-156.0,0.00029246,3]
[391078077,1760304669816,-160.0,0.00029246,3]
[391078078,1760304669825,-1436.5368101,0.00029246,2]
[391078079,1760304669834,-1436.5368101,0.00029246,2]
[391078080,1760304669844,-1000.0,0.00029257,2]
[391078081,1760304669853,-652.0,0.00029269,2]
[391078082,1760304669864,-500.0,0.00029272,10]
[391078083,1760304669874,-1800.0,0.00029276,7]
[391078084,1760304669884,-1200.0,0.00029277,7]
[391078085,1760304669894,-500.0,0.00029278,7]
[391078086,1760304669903,-500.0,0.00029282,10]
[391078087,1760304669912,-582.85174561,0.00029282,120]
[391078088,1760304669921,-500.0,0.00029282,120]
[391078089,1760304669930,-3531.93,0.00029283,120]
[391078090,1760304669939,-3531.93,0.00029283,120]
[391078091,1760304669948,-3531.93,0.00029283,120]
[391078092,1760304669957,-3531.93,0.00029283,120]
[391078093,1760304669965,-3531.93,0.00029283,120]
[391078094,1760304669974,-3531.93,0.00029283,120]
[391078095,1760304669983,-3531.93,0.00029283,120]
[391078096,1760304669992,-3531.93,0.00029283,120]
[391078097,1760304670000,-3531.93,0.00029283,120]
[391078098,1760304670009,-3531.93,0.00029283,120]
[391078099,1760304670019,-3531.93,0.00029283,120]
[391078100,1760304670028,-3531.93,0.00029283,120]
[391078101,1760304670037,-3531.93,0.00029283,120]
[391078102,1760304670046,-3531.93,0.00029283,120]
[391078103,1760304670054,-3531.93,0.00029283,120]
[391078104,1760304670064,-3531.93,0.00029283,120]
[391078105,1760304670074,-3532.14977206,0.00029283,120]
[391078106,1760304670083,-500.0,0.00029283,120]
[391078107,1760304670091,-500.0,0.00029283,120]
[391078108,1760304670100,-500.0,0.00029283,120]
[391078109,1760304670109,-500.0,0.00029283,120]
[391078110,1760304670119,-500.0,0.00029283,120]
[391078111,1760304670128,-500.0,0.00029283,120]
[391078112,1760304670137,-500.0,0.00029283,120]
[391078113,1760304670146,-500.0,0.00029283,120]
[391078114,1760304670154,-500.0,0.00029283,120]
[391078115,1760304670163,-500.0,0.00029283,120]
[391078116,1760304670172,-500.0,0.00029283,120]
[391078117,1760304670180,-500.0,0.00029283,120]
[391078118,1760304670189,-500.0,0.00029283,120]
[391078119,1760304670198,-500.0,0.00029283,120]
[391078120,1760304670206,-500.0,0.00029283,120]
[391078121,1760304670215,-500.0,0.00029283,120]
[391078122,1760304670224,-500.0,0.00029283,120]
[391078123,1760304670233,-500.0,0.00029283,120]
[391078124,1760304670243,-500.0,0.00029283,120]
[391078125,1760304670252,-500.0,0.00029283,120]
[391078126,1760304670261,-500.0,0.00029283,120]
[391078127,1760304670270,-178.27797787,0.00029283,120]
[391078128,1760304670279,-1884.98,0.00029283,120]
[391078129,1760304670287,-1884.98,0.00029283,120]
[391078130,1760304670296,-1884.98,0.00029283,120]
[391078131,1760304670305,-1884.98,0.00029283,120]
[391078132,1760304670315,-1884.98,0.00029283,120]
[391078133,1760304670324,-1884.98,0.00029283,120]
[391078134,1760304670333,-1884.98,0.00029283,120]
[391078135,1760304670342,-1884.98,0.00029283,120]
[391078136,1760304670351,-1884.98,0.00029283,120]
[391078137,1760304670360,-1884.98,0.00029283,120]
[391078138,1760304670369,-1884.98,0.00029283,120]
[391078139,1760304670378,-1884.98,0.00029283,120]
[391078140,1760304670387,-1884.98,0.00029283,120]
[391078141,1760304670396,-1884.98,0.00029283,120]
[391078142,1760304670407,-1884.98,0.00029283,120]
[391078143,1760304670416,-1884.98,0.00029283,120]
[391078144,1760304670425,-1885.05294962,0.00029283,120]
[391078145,1760304670434,-500.0,0.00029283,120]
[391078146,1760304670442,-500.0,0.00029283,120]
[391078147,1760304670453,-500.0,0.00029283,120]
[391078148,1760304670462,-614.49163534,0.00029283,120]
[391078149,1760304670471,-1176.66,0.00029283,120]
[391078150,1760304670480,-1176.66,0.00029283,120]
[391078151,1760304670489,-1176.66,0.00029283,120]
[391078152,1760304670498,-1176.66,0.00029283,120]
[391078153,1760304670507,-1176.66,0.00029283,120]
[391078154,1760304670516,-1176.66,0.00029283,120]
[391078155,1760304670525,-1176.66,0.00029283,120]
[391078156,1760304670533,-1176.66,0.00029283,120]
[391078157,1760304670542,-1176.66,0.00029283,120]
[391078158,1760304670550,-1176.66,0.00029283,120]
[391078159,1760304670559,-1176.66,0.00029283,120]
[391078160,1760304670569,-1176.66,0.00029283,120]
[391078161,1760304670577,-1176.66,0.00029283,120]
[391078162,1760304670586,-1176.66,0.00029283,120]
[391078163,1760304670594,-1176.66,0.00029283,120]
[391078164,1760304670603,-1176.66,0.00029283,120]
[391078165,1760304670613,-1176.71304131,0.00029283,120]
[391078166,1760304670621,-152.0,0.00029283,4]
[391078167,1760304670631,-792.38,0.00029285,30]
[391078168,1760304670640,-652.0,0.0002929,7]
[391078169,1760304670649,-3649.26,0.000293,7]
[391078170,1760304670658,-3581.32,0.000293,2]
[391078171,1760304670667,-652.0,0.00029303,2]
[391078172,1760304670676,-1000.0,0.00029304,2]
[391078173,1760304670684,-200.0,0.00029316,120]
[391078174,1760304670693,-1000.0,0.00029324,2]
[391078175,1760304670702,-1425.0,0.00029324,2]
[391078176,1760304670711,-500.0,0.00029339,7]
[391078177,1760304670720,-500.0,0.00029339,16]
[391078178,1760304670728,-500.0,0.00029339,3]
[391078179,1760304670738,-500.0,0.00029339,12]
[391078180,1760304670748,-501.03693196,0.00029339,12]
[391078181,1760304670757,-500.0,0.00029339,2]
[391078182,1760304670766,-500.0,0.00029339,2]
[391078183,1760304670775,-500.0,0.00029339,2]
[391078184,1760304670784,-500.0,0.00029339,2]
[391078185,1760304670793,-500.0,0.00029339,10]
[391078186,1760304670802,-500.0,0.00029339,2]
[391078187,1760304670811,-500.0,0.00029339,2]
[391078188,1760304670820,-300.0,0.00029339,7]
[391078189,1760304670829,-500.0,0.00029339,12]
[391078190,1760304670840,-500.0,0.00029339,12]
[391078191,1760304670848,-468.24,0.00029339,12]
[391078192,1760304670857,-11821392.93652861,0.00029339,30]
[391078193,1760304671313,-1186.87876208,0.00029339,30]
[391078194,1760304671324,-3839.24170629,0.00029339,30]
[391078195,1760304671335,-494.42901379,0.00029339,30]
[391078196,1760304671345,-275.85,0.00029339,30]
[391078197,1760304671356,-4644.64,0.00029339,30]
[391078198,1760304671370,-1730.84596,0.00029339,30]
[391078199,1760304671381,-3730.15690501,0.00029339,30]
[391078200,1760304671392,-808.8456972,0.00029339,30]
[391078201,1760304671406,-1556.58827476,0.00029339,30]
[391078202,1760304671421,-296.4893134,0.00029339,30]
[391078203,1760304671432,-1161.0,0.00029339,30]
[391078204,1760304671444,-4813.15858826,0.00029339,30]
[391078205,1760304671455,-25419.32769104,0.00029339,30]
[391078206,1760304671467,-109651.38123201,0.00029339,30]
[391078207,1760304671475,-500.0,0.00029339,120]
[391078208,1760304671484,-500.0,0.00029339,120]
[391078209,1760304671493,-500.0,0.00029339,120]
[391078210,1760304671502,-500.0,0.00029339,120]
[391078211,1760304671511,-500.0,0.00029339,120]
[391078212,1760304671520,-500.0,0.00029339,120]
[391078213,1760304671529,-500.0,0.00029339,120]
[391078214,1760304671538,-280.65,0.00029339,120]
[391078215,1760304671547,-500.0,0.00029339,120]
[391078216,1760304671556,-76805.7463926,0.00029339,30]
[391078217,1760304671570,-92455.26037575,0.00029339,30]
[391078218,1760304671581,-130688.96204626,0.00029339,30]
[391078219,1760304671592,-313190.06594956,0.00029339,30]
[391078220,1760304671605,-255.0,0.00029339,30]
[391078221,1760304671705,-151.0,0.00016057,2]
[391078222,1760304671714,-114.90000001,0.00016445,2]
[391078223,1760304671725,-293.81088647,0.00016445,2]
[391078224,1760304671734,-2443.07431352,0.00029339,30]
[391078225,1760304671746,-52529.1507213,0.00029339,30]
[391078226,1760304671762,-238747.28251163,0.00029339,30]
[391078227,1760304671838,-6684.29594916,0.00029339,30]
[391078228,1760304671873,-5779.5,0.00029339,30]
[391078229,1760304671884,-1280.02636737,0.00029339,30]
[391078230,1760304671896,-576.82,0.00029339,30]
[391078231,1760304671907,-452.09999975,0.00029339,30]
[391078232,1760304671927,-3381.288,0.00029339,30]
[391078233,1760304671937,-580.63547729,0.00029339,30]
[391078234,1760304671948,-39041.2989258,0.00029339,30]
[391078239,1760304870625,169.0,7.5e-07,2]
[391078247,1760305229976,200.0,0.00012438,2]
[391078250,1760305291900,1000.0,0.0002739,120]
[391078255,1760305515352,5000.0,0.00027397,120]
[391078269,1760305831707,-4648.37824365,0.00014218,2]
[391078270,1760305831719,-334.46803635,0.00014218,2]
[391078271,1760305831728,-166.47344729,0.0001429,2]
[391078272,1760305831740,-681.62051949,0.00014363,2]
[391078273,1760305831749,-376.85669519,0.00014463,2]
[391078274,1760305831761,-1649.63108392,0.00014463,2]
[391078275,1760305831771,-300.0,0.00014562,2]
[391078276,1760305831780,-300.0,0.00014562,2]
[391078277,1760305831794,-1200.0,0.00014562,2]
[391078278,1760305831803,-1129.96633016,0.00014563,2]
[391078279,1760305831812,-195.0,0.00014563,2]
[391078280,1760305831822,-300.0,0.00014598,2]
[391078281,1760305831833,-1200.0,0.00014599,2]
[391078282,1760305831842,-535.85988853,0.000146,2]
[391078283,1760305831853,-106.23572754,0.000146,2]
[391078284,1760305831864,-195.0,0.00014647,2]
[391078285,1760305831874,-150.0,0.00014999,2]
[391078286,1760305831883,-1000.0,0.00015,2]
[391078287,1760305831892,-1000.0,0.00015,2]
[391078288,1760305831901,-1000.0,0.00015,2]
[391078289,1760305831911,-1000.0,0.00015,2]
[391078290,1760305831920,-1000.0,0.00015,2]
[391078291,1760305831929,-546.84,0.00015,2]
[391078292,1760305831938,-7.92426246,0.00015,2]
[391078293,1760305831949,-529.05,0.00015,2]
[391078294,1760305831960,-286.20473754,0.00015,2]
[391078295,1760305831970,-1000.0,0.00015,2]
[391078296,1760305831979,-1000.0,0.00015,2]
[391078297,1760305831988,-1284.19123214,0.00015514,2]
[391078298,1760305831997,-681.62051949,0.00015593,2]
[391078299,1760305832006,-150.0,0.00015829,2]
[391078300,1760305832015,-302.65,0.0001585,2]
[391078301,1760305832024,-1639.02177302,0.00015904,2]
[391078303,1760305832036,-413.37822698,0.00015904,2]
[391078305,1760305832045,-2000.0,0.00015909,2]
[391078307,1760305832054,-250.0,0.00015939,2]
[391078309,1760305832063,-300.0,0.00015945,2]
[391078311,1760305832073,-420.0,0.00015945,2]
[391078313,1760305832081,-116.62179302,0.00015979,2]
[391078315,1760305832092,-1883.37820698,0.00015979,2]
[391078317,1760305832101,-300.0,0.00015979,2]
[391078319,1760305832110,-195.0,0.00015979,2]
[391078321,1760305832119,-250.0,0.00015979,2]
[391078323,1760305832131,-1680.0,0.00015984,2]
[391078325,1760305832140,-1191.62179302,0.00016019,2]
[391078327,1760305832151,-488.37820698,0.00016019,2]
[391078329,1760305832161,-255.0,0.00016124,2]
[391078331,1760305832170,-426.7081524,0.000162,2]
[391078334,1760305832180,-173.58611156,0.000162,2]
[391078336,1760305832190,-297.07,0.0001628,2]
[391078339,1760305832199,-426.7081524,0.000164,2]
[391078340,1760305832209,-173.58611156,0.000164,2]
[391078343,1760305832219,-1926.28684821,0.00016427,2]
[391078345,1760305832228,-426.7081524,0.000165,2]
[391078347,1760305832237,-173.58611156,0.000165,2]
[391078349,1760305832247,-297.07,0.00016554,2]
[391078350,1760305832256,-426.7081524,0.000167,2]
[391078352,1760305832265,-173.58611156,0.000167,2]
[391078354,1760305832275,-278.4699,0.00016739,2]
[391078357,1760305832286,-681.62051949,0.00016822,2]
[391078358,1760305832295,-297.0769919,0.00016828,2]
[391078360,1760305832304,-426.7081524,0.000169,2]
[391078363,1760305832314,-10971.13,0.00016922,2]
[391078365,1760305832323,-999.99,0.00016922,2]
[391078366,1760305832333,-150.99,0.00016922,2]
[391078368,1760305832343,-15212.87770289,0.00016922,2]
[391078371,1760305832357,-3475.00229711,0.00016922,2]
[391078373,1760305832368,-150.99,0.00016922,2]
[391078375,1760305832377,-6720.12,0.00016922,2]
[391078377,1760305832387,-1197.75395079,0.00017,2]
[391078379,1760305832396,-1197.75395079,0.00017,2]
[391078381,1760305832406,-250.0,0.00017,2]
[391078383,1760305832415,-2696.26,0.00017165,2]
[391078385,1760305832425,-1197.75395079,0.000172,2]
[391078387,1760305832435,-1197.75395079,0.000173,2]
[391078389,1760305832445,-686.02,0.00017332,2]
[391078391,1760305832454,-250.0,0.00017336,2]
[391078393,1760305832464,-433.0,0.00017339,2]
[391078395,1760305832473,-2568.38246428,0.00017341,2]
[391078397,1760305832482,-991.51790291,0.00017373,2]
[391078399,1760305832491,-1909.89,0.00017434,2]
[391078401,1760305832501,-480.0,0.00017458,2]
[391078403,1760305832510,-1197.75395079,0.000175,2]
[391078405,1760305832519,-326.0,0.00017501,2]
[391078407,1760305832529,-2351.0,0.0001762,2]
[391078409,1760305832538,-500.0,0.00017773,2]
[391078411,1760305832548,-267.46074303,0.00017773,2]
[391078413,1760305832558,-500.0,0.00017773,2]
[391078415,1760305832567,-500.0,0.00017773,2]
[391078417,1760305832576,-1000.0,0.00017773,2]
[391078419,1760305832586,-1000.0,0.00017773,2]
[391078421,1760305832596,-500.0,0.00017773,2]
[391078423,1760305832605,-1000.0,0.00017773,2]
[391078425,1760305832615,-1000.0,0.00017773,2]
[391078427,1760305832624,-500.0,0.00017773,2]
[391078429,1760305832634,-1000.0,0.00017773,2]
[391078431,1760305832643,-1000.0,0.00017773,2]
[391078433,1760305832652,-500.0,0.00017773,2]
[391078435,1760305832662,-1000.0,0.00017773,2]
[391078437,1760305832671,-1000.0,0.00017773,2]
[391078439,1760305832680,-1000.0,0.00017773,2]
[391078441,1760305832690,-500.0,0.00017773,2]
[391078443,1760305832699,-1000.0,0.00017773,2]
[391078445,1760305832708,-1000.0,0.00017773,2]
[391078447,1760305832718,-500.0,0.00017773,2]
[391078449,1760305832728,-9211.34798985,0.00017773,2]
[391078451,1760305832737,-334.650135,0.00017773,2]
[391078453,1760305832747,-500.0,0.00017773,2]
[391078455,1760305832757,-574.31237231,0.00017773,2]
[391078458,1760305832773,-425.68762769,0.00017773,2]
[391078460,1760305832787,-500.0,0.00017773,2]
[391078462,1760305832797,-1000.0,0.00017773,2]
[391078464,1760305832807,-500.0,0.00017773,2]
[391078466,1760305832816,-1000.0,0.00017773,2]
[391078468,1760305832827,-500.0,0.00017773,2]
[391078471,1760305832836,-1000.0,0.00017773,2]
[391078472,1760305832848,-1000.0,0.00017773,2]
[391078475,1760305832858,-1000.0,0.00017773,2]
[391078477,1760305832868,-322.6107,0.00017773,2]
[391078479,1760305832878,-9552.16786547,0.00017828,2]
[391078481,1760305832889,-1000.0,0.00017879,2]
[391078483,1760305832898,-9905.5980765,0.00017883,2]
[391078486,1760305832914,-10272.10520533,0.00017938,2]
[391078488,1760305832927,-292.0,0.00017992,2]
[391078490,1760305832936,-10652.17309792,0.00017993,2]
[391078492,1760305832946,-209.21997909,0.00018,2]
[391078494,1760305832955,-246.90919376,0.00018,2]
[391078496,1760305832964,-204.27564594,0.00018,2]
[391078498,1760305832974,-1027.47363788,0.00018,2]
[391078500,1760305832984,-11046.30350255,0.00018048,2]
[391078502,1760305832993,-4503.40692716,0.00018103,2]
[391078504,1760305833004,-209.21997909,0.000182,2]
[391078506,1760305833014,-204.27564594,0.000182,2]
[391078508,1760305833023,-1027.47363788,0.000182,2]
[391078510,1760305833033,-500.0,0.000182,2]
[391078512,1760305833042,-3210.47808035,0.00018255,2]
[391078514,1760305833052,-1027.47363788,0.000184,2]
[391078516,1760305833061,-1027.47363788,0.000185,2]
[391078518,1760305833070,-2500.0,0.00018539,3]
[391078520,1760305833080,-1027.47363788,0.000187,2]
[391078522,1760305833089,-1000.0,0.00018748,2]
[391078524,1760305833099,-250.0,0.00018787,2]
[391078527,1760305833108,-1000.0,0.00018879,2]
[391078529,1760305833118,-184.44237378,0.000189,2]
[391078531,1760305833131,-843.0312641,0.000189,2]
[391078533,1760305833141,-300.0,0.00019,2]
[391078535,1760305833150,-1027.47363788,0.000191,2]
[391078537,1760305833160,-277.35679052,0.00019142,2]
[391078539,1760305833170,-241.40480037,0.00019142,2]
[391078541,1760305833179,-3852.57369642,0.00019168,2]
[391078543,1760305833188,-500.0,0.00019177,2]
[391078545,1760305833198,-222.43170548,0.00019177,2]
[391078547,1760305833207,-504.79196051,0.00019177,2]
[391078549,1760305833218,-500.0,0.00019177,2]
[391078551,1760305833228,-500.0,0.00019177,2]
[391078553,1760305833238,-500.0,0.00019177,2]
[391078555,1760305833247,-500.0,0.00019177,2]
[391078557,1760305833258,-500.0,0.00019177,2]
[391078559,1760305833268,-500.0,0.00019177,2]
[391078561,1760305833277,-500.0,0.00019177,2]
[391078563,1760305833289,-515.21904817,0.00019177,2]
[391078565,1760305833298,-619.25229446,0.00019177,2]
[391078567,1760305833308,-500.0,0.00019177,2]
[391078569,1760305833319,-500.0,0.00019177,2]
[391078571,1760305833328,-500.0,0.00019177,2]
[391078573,1760305833338,-500.0,0.00019177,2]
[391078575,1760305833348,-500.0,0.00019177,2]
[391078577,1760305833359,-500.0,0.00019177,2]
[391078579,1760305833369,-500.0,0.00019177,2]
[391078581,1760305833379,-500.0,0.00019177,2]
[391078583,1760305833389,-500.0,0.00019177,2]
[391078585,1760305833398,-500.0,0.00019177,2]
[391078587,1760305833408,-500.0,0.00019177,2]
[391078589,1760305833418,-500.0,0.00019177,2]
[391078592,1760305833428,-500.0,0.00019177,2]
[391078594,1760305833437,-500.0,0.00019177,2]
[391078595,1760305833447,-500.0,0.00019177,2]
[391078598,1760305833456,-500.0,0.00019177,2]
[391078600,1760305833466,-500.0,0.00019177,2]
[391078602,1760305833475,-500.0,0.00019177,2]
[391078604,1760305833484,-500.0,0.00019177,2]
[391078605,1760305833495,-500.0,0.00019177,2]
[391078606,1760305833504,-500.0,0.00019177,2]
[391078607,1760305833514,-500.0,0.00019177,2]
[391078608,1760305833524,-500.0,0.00019177,2]
[391078609,1760305833534,-500.0,0.00019177,2]
[391078610,1760305833544,-500.0,0.00019177,2]
[391078611,1760305833554,-500.0,0.00019177,2]
[391078612,1760305833565,-500.0,0.00019177,2]
[391078614,1760305833574,-500.0,0.00019177,2]
[391078616,1760305833584,-500.0,0.00019177,2]
[391078618,1760305833594,-500.0,0.00019177,2]
[391078620,1760305833603,-500.0,0.00019177,2]
[391078622,1760305833613,-606.58215394,0.00019177,2]
[391078624,1760305833622,-500.0,0.00019177,2]
[391078626,1760305833631,-500.0,0.00019177,2]
[391078628,1760305833641,-500.0,0.00019177,2]
[391078630,1760305833650,-500.0,0.00019177,2]
[391078632,1760305833659,-500.0,0.00019177,2]
[391078634,1760305833669,-500.0,0.00019177,2]
[391078636,1760305833679,-500.0,0.00019177,2]
[391078638,1760305833689,-500.0,0.00019177,2]
[391078640,1760305833698,-500.0,0.00019177,2]
[391078642,1760305833708,-260.6582154,0.00019177,2]
[391078644,1760305833717,-500.0,0.00019177,2]
[391078646,1760305833726,-500.0,0.00019177,2]
[391078648,1760305833736,-500.0,0.00019177,2]
[391078650,1760305833745,-500.0,0.00019177,2]
[391078652,1760305833755,-151.0,0.00019178,2]
[391078653,1760305833764,-4000.0,0.00019178,2]
[391078654,1760305833775,-379.07,0.00019266,2]
[391078655,1760305833786,-1500.0,0.00019296,2]
[391078656,1760305833798,-1027.47363788,0.000193,2]
[391078657,1760305833808,-500.0,0.0001935,2]
[391078658,1760305833818,-2854.0,0.00019382,2]
[391078659,1760305833829,-1027.47363788,0.000195,2]
[391078660,1760305833839,-1027.47363788,0.000197,2]
[391078661,1760305833848,-165.99410208,0.00019726,2]
[391078662,1760305833863,-2000.0,0.00019844,2]
[391078663,1760305833873,-1000.0,0.00019879,2]
[391078664,1760305833884,-4494.66931249,0.00020082,2]
[391078666,1760305833894,-2270.19159392,0.00020392,2]
[391078668,1760305833903,-287.61899177,0.00020511,2]
[391078670,1760305833913,-1000.0,0.00020548,2]
[391078672,1760305833923,-635.0,0.00020548,2]
[391078674,1760305833934,-1958.39,0.00020693,2]
[391078676,1760305833945,-1000.0,0.00020879,2]
[391078678,1760305833955,-5136.76492856,0.00020996,2]
[391078680,1760305833965,-1506.9626,0.00021054,2]
[391078682,1760305833976,-3009.883383,0.000212,2]
[391078685,1760305833989,-1529.36038,0.000212,2]
[391078687,1760305834001,-3516.00000004,0.000212,2]
[391078689,1760305834013,-586.599975,0.000212,2]
[391078691,1760305834025,-1864.99999995,0.000212,2]
[391078693,1760305834037,-741.15626201,0.000212,2]
[391078695,1760305834047,-262.52709799,0.00021792,2]
[391078698,1760305834059,-832.40100201,0.00021792,2]
[391078700,1760305834069,-263.42806592,0.00021879,2]
[391078702,1760305834081,-736.57193408,0.00021879,2]
[391078704,1760305834091,-877.0,0.0002188,2]
[391078706,1760305834101,-298.26089446,0.0002188,2]
[391078708,1760305834110,-1322.41948543,0.000219,3]
[391078710,1760305834122,-1278.71814646,0.000219,3]
[391078713,1760305834134,-2911.86236811,0.000219,3]
[391078715,1760305834143,-5778.86054463,0.00021909,2]
[391078716,1760305834152,-5513.0,0.000226,5]
[391078718,1760305834162,-1000.0,0.00022699,2]
[391078720,1760305834171,-514.39123871,0.000227,2]
[391078722,1760305834181,-6420.9561607,0.00022823,2]
[391078724,1760305834190,-1000.0,0.00022879,2]
[391078726,1760305834200,-239.31685829,0.00023249,2]
[391078729,1760305834210,-180.0,0.00023608,2]
[391078731,1760305834220,-640.18,0.00023611,2]
[391078733,1760305834229,-514.39123869,0.00023623,2]
[391078735,1760305834239,-7063.05177677,0.00023737,2]
[391078737,1760305834248,-1000.0,0.00023879,2]
[391078739,1760305834258,-336.384,0.00023958,5]
[391078741,1760305834267,-1589.87,0.00023977,2]
[391078743,1760305834278,-500.0,0.00024022,2]
[391078745,1760305834288,-361.43987315,0.00024341,2]
[391078747,1760305834301,-738.56012685,0.00024341,2]
[391078749,1760305834311,-800.0,0.00024342,2]
[391078751,1760305834320,-78.7898269,0.00024375,2]
[391078753,1760305834331,-521.2101731,0.00024375,2]
[391078755,1760305834341,-1000.0,0.00024378,2]
[391078757,1760305834350,-800.0,0.00024389,2]
[391078759,1760305834360,-506.0,0.00024397,2]
[391078761,1760305834369,-26.7834519,0.00024461,2]
[391078764,1760305834383,-483.67048522,0.00024461,2]
[391078766,1760305834395,-479.41880436,0.00024461,2]
[391078768,1760305834404,-1100.0,0.00024512,2]
[391078770,1760305834413,-497.78119564,0.00024512,2]
[391079142,1760305837624,-1945.56370637,0.00016822,2]
[391079147,1760305837633,-2545.0,0.00020693,2]
[391079152,1760305837642,-2545.0,0.00023693,2]
[391079157,1760305837651,-2.21880436,0.00024512,2]
[391079162,1760305837662,-1100.0,0.00024519,2]
[391079166,1760305837670,-4652.63693861,0.00024524,2]
[391079172,1760305837681,-1247.36306139,0.00024524,2]
[391079176,1760305837691,-500.0,0.00024528,2]
[391079179,1760305837701,-5900.0,0.00024538,2]
[391079183,1760305837710,-514.39123869,0.00024546,2]
[391079187,1760305837720,-1600.0,0.00024575,2]